[Event "Late-Titled-Tuesday-Blitz-January-23-2024"]
[Site "Chess.com"]
[Date "2024.01.23"]
[Round "1"]
[White "Defend1r"]
[Black "dsanchez1973"]
[Result "1-0"]
[WhiteElo "2564"]
[BlackElo "2162"]
[TimeControl "180+1"]
[EndTime "14:05:15 PST"]
[Termination "Defend1r won by resignation"]

1. c4 {[%clk 0:02:54.5]} 1... e5 {[%clk 0:02:56.4]} 2. g3 {[%clk 0:02:53.7]}
2... Nf6 {[%clk 0:02:55.4]} 3. Bg2 {[%clk 0:02:53.7]} 3... d5 {[%clk 0:02:55.8]}
4. cxd5 {[%clk 0:02:52.7]} 4... Nxd5 {[%clk 0:02:56.3]} 5. Nc3 {[%clk
0:02:52.9]} 5... Nb6 {[%clk 0:02:56.6]} 6. Nf3 {[%clk 0:02:49.6]} 6... Nc6
{[%clk 0:02:57]} 7. O-O {[%clk 0:02:49.3]} 7... Be7 {[%clk 0:02:57.7]} 8. d3
{[%clk 0:02:45.5]} 8... g5 {[%clk 0:02:57.9]} 9. Be3 {[%clk 0:02:19.9]} 9... g4
{[%clk 0:02:57.7]} 10. Nd2 {[%clk 0:02:19.8]} 10... h5 {[%clk 0:02:57.3]} 11.
Nc4 {[%clk 0:02:08.1]} 11... Be6 {[%clk 0:02:52.5]} 12. Qc2 {[%clk 0:01:15.4]}
12... Nd5 {[%clk 0:02:44.7]} 13. Nxd5 {[%clk 0:01:10.6]} 13... Bxd5 {[%clk
0:02:44.7]} 14. f3 {[%clk 0:01:04.8]} 14... h4 {[%clk 0:02:40.3]} 15. fxg4
{[%clk 0:01:00.6]} 15... hxg3 {[%clk 0:02:39.5]} 16. hxg3 {[%clk 0:00:57.9]}
16... Bxg2 {[%clk 0:02:24.6]} 17. Kxg2 {[%clk 0:00:58.8]} 17... Qd5+ {[%clk
0:02:24.6]} 18. Rf3 {[%clk 0:00:59.4]} 18... O-O-O {[%clk 0:02:15.9]} 19. Nd2
{[%clk 0:00:43.6]} 19... Rdg8 {[%clk 0:02:04.4]} 20. Ne4 {[%clk 0:00:35.7]}
20... Rxg4 {[%clk 0:01:57.5]} 21. Rc1 {[%clk 0:00:34.6]} 21... Kb8 {[%clk
0:01:33.4]} 22. Qc4 {[%clk 0:00:28.8]} 22... Qxc4 {[%clk 0:01:28.3]} 23. Rxc4
{[%clk 0:00:29.7]} 23... f6 {[%clk 0:01:25.7]} 24. Nxf6 {[%clk 0:00:27.7]} 24...
Bxf6 {[%clk 0:01:22.7]} 25. Rxg4 {[%clk 0:00:27.1]} 1-0

[Event "Late-Titled-Tuesday-Blitz-January-23-2024"]
[Site "Chess.com"]
[Date "2024.01.23"]
[Round "1"]
[White "messiboca"]
[Black "Machteldvf"]
[Result "1-0"]
[WhiteElo "2768"]
[BlackElo "2432"]
[TimeControl "180+1"]
[EndTime "14:05:19 PST"]
[Termination "messiboca won by checkmate"]

1. c4 {[%clk 0:03:00.5]} 1... Nf6 {[%clk 0:02:57.6]} 2. Nc3 {[%clk 0:02:59.6]}
2... g6 {[%clk 0:02:50.8]} 3. e4 {[%clk 0:02:59.4]} 3... d6 {[%clk 0:02:49.5]}
4. g3 {[%clk 0:02:59.8]} 4... Bg7 {[%clk 0:02:49.2]} 5. Bg2 {[%clk 0:03:00.4]}
5... O-O {[%clk 0:02:48.1]} 6. Nge2 {[%clk 0:03:01]} 6... c5 {[%clk 0:02:44.2]}
7. d3 {[%clk 0:02:59.5]} 7... Nc6 {[%clk 0:02:43.6]} 8. O-O {[%clk 0:02:59.8]}
8... h5 {[%clk 0:02:33]} 9. h3 {[%clk 0:02:58.7]} 9... Kh7 {[%clk 0:02:28.5]}
10. Be3 {[%clk 0:02:58.3]} 10... a6 {[%clk 0:02:16.2]} 11. f4 {[%clk 0:02:56]}
11... Ng8 {[%clk 0:01:59.6]} 12. f5 {[%clk 0:02:24.3]} 12... Nd4 {[%clk
0:01:50.5]} 13. Nf4 {[%clk 0:02:16.4]} 13... e5 {[%clk 0:01:20]} 14. Nxh5 {[%clk
0:01:54.5]} 14... gxh5 {[%clk 0:01:08.3]} 15. Qxh5+ {[%clk 0:01:55.4]} 15... Bh6
{[%clk 0:01:04.1]} 16. g4 {[%clk 0:01:45.9]} 16... f6 {[%clk 0:00:24.4]} 17.
Bxh6 {[%clk 0:01:40.6]} 17... Nxh6 {[%clk 0:00:25.3]} 18. Qg6+ {[%clk
0:01:40.9]} 18... Kh8 {[%clk 0:00:21.6]} 19. Qxh6+ {[%clk 0:01:41.8]} 19... Kg8
{[%clk 0:00:22]} 20. g5 {[%clk 0:01:34.1]} 20... fxg5 {[%clk 0:00:20.8]} 21. f6
{[%clk 0:01:34.5]} 21... Ne6 {[%clk 0:00:20.4]} 22. Qg6+ {[%clk 0:01:28.1]}
22... Kh8 {[%clk 0:00:20.5]} 23. f7 {[%clk 0:01:28.8]} 23... Qe7 {[%clk
0:00:20]} 24. Qh6# {[%clk 0:01:28.9]} 1-0

[Event "Late-Titled-Tuesday-Blitz-January-23-2024"]
[Site "Chess.com"]
[Date "2024.01.23"]
[Round "1"]
[White "chessisveryfun1264"]
[Black "Jem"]
[Result "1-0"]
[WhiteElo "2561"]
[BlackElo "2151"]
[TimeControl "180+1"]
[EndTime "14:05:34 PST"]
[Termination "chessisveryfun1264 won by checkmate"]

1. Nf3 {[%clk 0:03:00.9]} 1... Nf6 {[%clk 0:02:58.5]} 2. g3 {[%clk 0:02:46.1]}
2... g6 {[%clk 0:02:56.2]} 3. Bg2 {[%clk 0:02:45.5]} 3... Bg7 {[%clk 0:02:55.9]}
4. O-O {[%clk 0:02:46.4]} 4... O-O {[%clk 0:02:54.7]} 5. c4 {[%clk 0:02:46.8]}
5... d6 {[%clk 0:02:52.3]} 6. d4 {[%clk 0:02:46.4]} 6... Nc6 {[%clk 0:02:51.7]}
7. Nc3 {[%clk 0:02:45.5]} 7... e5 {[%clk 0:02:51]} 8. dxe5 {[%clk 0:02:45.3]}
8... dxe5 {[%clk 0:02:47.9]} 9. Bg5 {[%clk 0:02:46]} 9... Qxd1 {[%clk
0:02:34.9]} 10. Rfxd1 {[%clk 0:02:46.9]} 10... Be6 {[%clk 0:02:29.8]} 11. Nd5
{[%clk 0:02:45.9]} 11... Bxd5 {[%clk 0:01:44.9]} 12. cxd5 {[%clk 0:02:46.8]}
12... Nb4 {[%clk 0:01:34]} 13. Nxe5 {[%clk 0:02:46.3]} 13... Nfxd5 {[%clk
0:01:23.1]} 14. Nd7 {[%clk 0:02:45.8]} 14... Bxb2 {[%clk 0:01:05]} 15. Rab1
{[%clk 0:02:43.6]} 15... Nc3 {[%clk 0:00:46.8]} 16. Rxb2 {[%clk 0:02:42.4]}
16... Nxd1 {[%clk 0:00:46.5]} 17. Rxb4 {[%clk 0:02:42.8]} 17... a5 {[%clk
0:00:27.8]} 18. Rxb7 {[%clk 0:02:37.3]} 18... Rfc8 {[%clk 0:00:25.1]} 19. Rb3
{[%clk 0:02:23.5]} 19... Ra7 {[%clk 0:00:17.3]} 20. Bd5 {[%clk 0:02:08]} 20...
c5 {[%clk 0:00:16.2]} 21. Ne5 {[%clk 0:02:06]} 21... a4 {[%clk 0:00:11]} 22. Rf3
{[%clk 0:02:01.9]} 22... Rcc7 {[%clk 0:00:11.2]} 23. Bd2 {[%clk 0:01:56.1]}
23... Nb2 {[%clk 0:00:11.2]} 24. Bc3 {[%clk 0:01:54.8]} 24... Nd1 {[%clk
0:00:11.3]} 25. Ba1 {[%clk 0:01:54.6]} 25... c4 {[%clk 0:00:11.4]} 26. Nxc4
{[%clk 0:01:53.6]} 26... Rd7 {[%clk 0:00:11.5]} 27. e4 {[%clk 0:01:51.1]} 27...
Rac7 {[%clk 0:00:10.6]} 28. Ne5 {[%clk 0:01:51.7]} 28... Re7 {[%clk 0:00:09.7]}
29. Nxf7 {[%clk 0:01:50.4]} 29... Rxf7 {[%clk 0:00:08.4]} 30. Bd4 {[%clk
0:01:51.1]} 30... a3 {[%clk 0:00:06.1]} 31. Kf1 {[%clk 0:01:50.6]} 31... Nb2
{[%clk 0:00:06.2]} 32. Rxa3 {[%clk 0:01:49.2]} 32... Nc4 {[%clk 0:00:06.4]} 33.
Ra8+ {[%clk 0:01:49.6]} 33... Rc8 {[%clk 0:00:01.9]} 34. Rxc8# {[%clk
0:01:50.5]} 1-0

[Event "Late-Titled-Tuesday-Blitz-January-23-2024"]
[Site "Chess.com"]
[Date "2024.01.23"]
[Round "1"]
[White "chegueps"]
[Black "ItalianMachine"]
[Result "1-0"]
[WhiteElo "2676"]
[BlackElo "2370"]
[TimeControl "180+1"]
[EndTime "14:05:35 PST"]
[Termination "chegueps won by checkmate"]

1. d4 {[%clk 0:03:00.9]} 1... Nf6 {[%clk 0:02:57.5]} 2. Nf3 {[%clk 0:03:01.3]}
2... g6 {[%clk 0:02:51.2]} 3. Nc3 {[%clk 0:03:00.9]} 3... Bg7 {[%clk 0:02:51.8]}
4. Bf4 {[%clk 0:03:00]} 4... d6 {[%clk 0:02:52.3]} 5. Qd2 {[%clk 0:03:00.5]}
5... O-O {[%clk 0:02:52.9]} 6. Bh6 {[%clk 0:03:01]} 6... c5 {[%clk 0:02:49.1]}
7. h4 {[%clk 0:02:58]} 7... cxd4 {[%clk 0:02:48.8]} 8. Nxd4 {[%clk 0:02:58.4]}
8... Nc6 {[%clk 0:02:30.9]} 9. Nxc6 {[%clk 0:02:56.4]} 9... bxc6 {[%clk
0:02:30.4]} 10. h5 {[%clk 0:02:57.3]} 10... Bxh6 {[%clk 0:02:07.3]} 11. Qxh6
{[%clk 0:02:56.4]} 11... Nxh5 {[%clk 0:02:02.2]} 12. O-O-O {[%clk 0:02:49.8]}
12... Qa5 {[%clk 0:01:48.5]} 13. e4 {[%clk 0:02:42.5]} 13... Rb8 {[%clk
0:01:38.6]} 14. Be2 {[%clk 0:02:30.1]} 14... Nf6 {[%clk 0:00:51]} 15. a3 {[%clk
0:02:00.9]} 15... Qb6 {[%clk 0:00:44.1]} 16. b3 {[%clk 0:01:51.2]} 16... Be6
{[%clk 0:00:36.4]} 17. e5 {[%clk 0:01:46.7]} 17... dxe5 {[%clk 0:00:21.6]} 18.
Ne4 {[%clk 0:01:44]} 18... Rfd8 {[%clk 0:00:22.3]} 19. Rxd8+ {[%clk 0:01:31.7]}
19... Rxd8 {[%clk 0:00:21.9]} 20. Ng5 {[%clk 0:01:30.6]} 20... Qd4 {[%clk
0:00:18.5]} 21. Kb1 {[%clk 0:01:22.8]} 21... Bxb3 {[%clk 0:00:16.6]} 22. cxb3
{[%clk 0:01:16.4]} 22... Qc3 {[%clk 0:00:16.9]} 23. Bc4 {[%clk 0:01:12.8]} 23...
Rd2 {[%clk 0:00:14.2]} 24. Bxf7+ {[%clk 0:01:13]} 24... Kh8 {[%clk 0:00:14.6]}
25. Qxh7+ {[%clk 0:01:13.9]} 25... Nxh7 {[%clk 0:00:14.8]} 26. Rxh7# {[%clk
0:01:14.8]} 1-0

[Event "Late-Titled-Tuesday-Blitz-January-23-2024"]
[Site "Chess.com"]
[Date "2024.01.23"]
[Round "1"]
[White "Smile2005"]
[Black "SchmakAttack"]
[Result "1-0"]
[WhiteElo "2438"]
[BlackElo "2727"]
[TimeControl "180+1"]
[EndTime "14:05:36 PST"]
[Termination "Smile2005 won by resignation"]

1. e4 {[%clk 0:03:00.9]} 1... Nf6 {[%clk 0:02:59.4]} 2. Nc3 {[%clk 0:02:59.9]}
2... e5 {[%clk 0:02:58.4]} 3. Nf3 {[%clk 0:02:59.1]} 3... Nc6 {[%clk 0:02:58.7]}
4. Bb5 {[%clk 0:02:58.7]} 4... Bb4 {[%clk 0:02:54.1]} 5. O-O {[%clk 0:02:49.1]}
5... O-O {[%clk 0:02:53.9]} 6. Bxc6 {[%clk 0:02:48.8]} 6... dxc6 {[%clk
0:02:53.8]} 7. d3 {[%clk 0:02:48.7]} 7... Bd6 {[%clk 0:02:47.8]} 8. Ne2 {[%clk
0:02:41.4]} 8... Nd7 {[%clk 0:02:30.4]} 9. Ng3 {[%clk 0:02:38.6]} 9... Re8
{[%clk 0:02:30]} 10. h3 {[%clk 0:02:38.3]} 10... Nc5 {[%clk 0:02:24.5]} 11. Nh2
{[%clk 0:02:29.7]} 11... Ne6 {[%clk 0:02:22.8]} 12. Nf5 {[%clk 0:02:23.7]} 12...
Bf8 {[%clk 0:02:22.8]} 13. f4 {[%clk 0:02:22.1]} 13... g6 {[%clk 0:02:14]} 14.
fxe5 {[%clk 0:02:18.4]} 14... gxf5 {[%clk 0:02:13.7]} 15. exf5 {[%clk
0:02:18.5]} 15... Nd4 {[%clk 0:02:04.5]} 16. Qg4+ {[%clk 0:02:15.3]} 16... Kh8
{[%clk 0:02:03.3]} 17. Bg5 {[%clk 0:02:13.9]} 17... Ne2+ {[%clk 0:01:51.4]} 18.
Kh1 {[%clk 0:02:08]} 18... Be7 {[%clk 0:01:47.2]} 19. Bxe7 {[%clk 0:01:56]}
19... Qxe7 {[%clk 0:01:48.1]} 20. Qxe2 {[%clk 0:01:39.2]} 20... Qxe5 {[%clk
0:01:48.1]} 21. Qf3 {[%clk 0:01:33.3]} 21... Qxb2 {[%clk 0:01:37.8]} 22. Rae1
{[%clk 0:01:29.7]} 22... Bd7 {[%clk 0:01:31.1]} 23. Ng4 {[%clk 0:01:25.3]} 23...
Qc3 {[%clk 0:01:23.7]} 24. Rxe8+ {[%clk 0:01:18.9]} 24... Rxe8 {[%clk
0:01:24.6]} 25. Qg3 {[%clk 0:01:11.5]} 25... Qxc2 {[%clk 0:00:50.6]} 26. Nh6
{[%clk 0:01:05.7]} 1-0

[Event "Late-Titled-Tuesday-Blitz-January-23-2024"]
[Site "Chess.com"]
[Date "2024.01.23"]
[Round "1"]
[White "PNEPaul"]
[Black "YoreDea"]
[Result "0-1"]
[WhiteElo "1901"]
[BlackElo "2547"]
[TimeControl "180+1"]
[EndTime "14:05:41 PST"]
[Termination "YoreDea won by checkmate"]

1. e4 {[%clk 0:03:00.9]} 1... e6 {[%clk 0:02:32]} 2. d4 {[%clk 0:02:59.4]} 2...
d5 {[%clk 0:02:31.8]} 3. e5 {[%clk 0:02:59.3]} 3... c5 {[%clk 0:02:32.1]} 4. Qg4
{[%clk 0:02:59]} 4... Nc6 {[%clk 0:02:33]} 5. Nf3 {[%clk 0:02:58.9]} 5... h5
{[%clk 0:02:32.4]} 6. Qg3 {[%clk 0:02:58.4]} 6... cxd4 {[%clk 0:02:32.8]} 7. Bd3
{[%clk 0:02:58.2]} 7... h4 {[%clk 0:02:28.9]} 8. Qg4 {[%clk 0:02:57.8]} 8... Nh6
{[%clk 0:02:28.2]} 9. Bxh6 {[%clk 0:02:56.8]} 9... Rxh6 {[%clk 0:02:28]} 10. O-O
{[%clk 0:02:56.4]} 10... h3 {[%clk 0:02:22.6]} 11. g3 {[%clk 0:02:54.1]} 11...
Qc7 {[%clk 0:02:22.4]} 12. Re1 {[%clk 0:02:44.9]} 12... Bd7 {[%clk 0:02:22.5]}
13. c3 {[%clk 0:02:44.3]} 13... dxc3 {[%clk 0:02:21.4]} 14. Nxc3 {[%clk
0:02:44.3]} 14... O-O-O {[%clk 0:02:21.8]} 15. Rac1 {[%clk 0:02:43.3]} 15... Kb8
{[%clk 0:02:21.7]} 16. a3 {[%clk 0:02:43.1]} 16... Qb6 {[%clk 0:02:15.6]} 17. b4
{[%clk 0:02:38.1]} 17... Ne7 {[%clk 0:02:15.8]} 18. Ng5 {[%clk 0:01:38.3]} 18...
Be8 {[%clk 0:02:11.6]} 19. Nxh3 {[%clk 0:01:13]} 19... g6 {[%clk 0:02:09.5]} 20.
Ng5 {[%clk 0:01:08.5]} 20... Nf5 {[%clk 0:02:09.9]} 21. Bxf5 {[%clk 0:01:07]}
21... gxf5 {[%clk 0:02:10.1]} 22. Qe2 {[%clk 0:01:02.3]} 22... Rg6 {[%clk
0:02:05.3]} 23. Nf3 {[%clk 0:01:01.5]} 23... f4 {[%clk 0:02:04.4]} 24. Nh4
{[%clk 0:01:01.4]} 24... Rg8 {[%clk 0:01:49.6]} 25. Kg2 {[%clk 0:00:57]} 25...
d4 {[%clk 0:01:41.4]} 26. Ne4 {[%clk 0:00:52.6]} 26... d3 {[%clk 0:01:41.8]} 27.
Qd2 {[%clk 0:00:45.8]} 27... Bc6 {[%clk 0:01:41.2]} 28. f3 {[%clk 0:00:39]}
28... Be7 {[%clk 0:01:41.1]} 29. Qxf4 {[%clk 0:00:23.1]} 29... d2 {[%clk
0:01:28.1]} 30. Nxd2 {[%clk 0:00:16.7]} 30... Bxh4 {[%clk 0:01:28.3]} 31. Qxh4
{[%clk 0:00:14.1]} 31... Rxd2+ {[%clk 0:01:27.6]} 32. Kh1 {[%clk 0:00:10.2]}
32... Bxf3# {[%clk 0:01:27.2]} 0-1

[Event "Late-Titled-Tuesday-Blitz-January-23-2024"]
[Site "Chess.com"]
[Date "2024.01.23"]
[Round "1"]
[White "ccccvhhhj"]
[Black "shimastream"]
[Result "0-1"]
[WhiteElo "2517"]
[BlackElo "3014"]
[TimeControl "180+1"]
[EndTime "14:05:42 PST"]
[Termination "shimastream won by resignation"]

1. e4 {[%clk 0:03:00.9]} 1... e5 {[%clk 0:02:53.5]} 2. Nf3 {[%clk 0:03:01.5]}
2... Qe7 {[%clk 0:02:47.4]} 3. Nc3 {[%clk 0:02:59.2]} 3... c6 {[%clk 0:02:47.3]}
4. a4 {[%clk 0:02:50.4]} 4... d6 {[%clk 0:02:46.3]} 5. Bc4 {[%clk 0:02:50.3]}
5... Nf6 {[%clk 0:02:44.6]} 6. d3 {[%clk 0:02:49.3]} 6... h6 {[%clk 0:02:43.5]}
7. h3 {[%clk 0:02:48.1]} 7... Nbd7 {[%clk 0:02:40.8]} 8. a5 {[%clk 0:02:46.3]}
8... g6 {[%clk 0:02:36.7]} 9. Be3 {[%clk 0:02:42.4]} 9... Bg7 {[%clk 0:02:36.3]}
10. Qd2 {[%clk 0:02:30.6]} 10... Nf8 {[%clk 0:02:26.6]} 11. d4 {[%clk
0:01:50.7]} 11... exd4 {[%clk 0:02:24.9]} 12. Nxd4 {[%clk 0:01:51.6]} 12... N8d7
{[%clk 0:02:16.3]} 13. f3 {[%clk 0:01:42.7]} 13... Ne5 {[%clk 0:02:06]} 14. Bb3
{[%clk 0:01:41.1]} 14... g5 {[%clk 0:02:02.2]} 15. O-O {[%clk 0:01:36.1]} 15...
Nh5 {[%clk 0:02:01]} 16. Rad1 {[%clk 0:01:29.6]} 16... O-O {[%clk 0:01:52.6]}
17. Nf5 {[%clk 0:01:10.1]} 17... Bxf5 {[%clk 0:01:52.2]} 18. exf5 {[%clk
0:01:11]} 18... Ng3 {[%clk 0:01:52.7]} 19. Rfe1 {[%clk 0:01:03.6]} 19... Nxf5
{[%clk 0:01:52.2]} 20. Bf2 {[%clk 0:01:03.8]} 20... Qc7 {[%clk 0:01:48.7]} 21.
Ne4 {[%clk 0:01:03.2]} 21... d5 {[%clk 0:01:45.2]} 22. Nc5 {[%clk 0:00:50.9]}
22... Ng6 {[%clk 0:01:36.7]} 23. c3 {[%clk 0:00:46.2]} 23... Rfe8 {[%clk
0:01:35.8]} 24. Bc2 {[%clk 0:00:46.4]} 24... Nfh4 {[%clk 0:01:35.5]} 25. a6
{[%clk 0:00:37.2]} 25... b6 {[%clk 0:01:32.6]} 26. Nd3 {[%clk 0:00:36.3]} 26...
c5 {[%clk 0:01:30.4]} 27. Rxe8+ {[%clk 0:00:33.1]} 27... Rxe8 {[%clk 0:01:29.9]}
28. Re1 {[%clk 0:00:34]} 28... Rd8 {[%clk 0:01:29.7]} 29. Be3 {[%clk 0:00:21.8]}
29... d4 {[%clk 0:01:25.7]} 30. Bf2 {[%clk 0:00:20.6]} 30... dxc3 {[%clk
0:01:25.3]} 31. bxc3 {[%clk 0:00:21.5]} 31... c4 {[%clk 0:01:25.4]} 0-1

[Event "Late-Titled-Tuesday-Blitz-January-23-2024"]
[Site "Chess.com"]
[Date "2024.01.23"]
[Round "1"]
[White "ural58"]
[Black "MikaelyanArman"]
[Result "0-1"]
[WhiteElo "2456"]
[BlackElo "2843"]
[TimeControl "180+1"]
[EndTime "14:05:42 PST"]
[Termination "MikaelyanArman won by resignation"]

1. e4 {[%clk 0:02:34.7]} 1... c5 {[%clk 0:02:57.7]} 2. b3 {[%clk 0:02:33.9]}
2... b6 {[%clk 0:02:54.3]} 3. d4 {[%clk 0:02:33.1]} 3... cxd4 {[%clk 0:02:52.8]}
4. Qxd4 {[%clk 0:02:33.1]} 4... Nc6 {[%clk 0:02:50.8]} 5. Qd2 {[%clk 0:02:33]}
5... Bb7 {[%clk 0:02:41.5]} 6. Bb2 {[%clk 0:02:32.7]} 6... e6 {[%clk 0:02:41.7]}
7. Nc3 {[%clk 0:02:32.1]} 7... Nf6 {[%clk 0:02:38.9]} 8. O-O-O {[%clk
0:02:21.6]} 8... Bb4 {[%clk 0:02:37.8]} 9. f3 {[%clk 0:02:21.1]} 9... Qe7 {[%clk
0:02:36.5]} 10. Qg5 {[%clk 0:02:11]} 10... Ba3 {[%clk 0:02:01]} 11. e5 {[%clk
0:02:09.4]} 11... Bxb2+ {[%clk 0:01:35.9]} 12. Kxb2 {[%clk 0:02:10.3]} 12... Nd5
{[%clk 0:01:36.6]} 13. Qxg7 {[%clk 0:02:01.4]} 13... O-O-O {[%clk 0:01:31.3]}
14. Nxd5 {[%clk 0:02:01.2]} 14... exd5 {[%clk 0:01:32.2]} 15. f4 {[%clk
0:01:56.8]} 15... Qb4 {[%clk 0:01:19.6]} 16. Qg3 {[%clk 0:01:46.5]} 16... Rhg8
{[%clk 0:01:16.4]} 17. Qf2 {[%clk 0:01:45.7]} 17... d6 {[%clk 0:01:05.7]} 18. a3
{[%clk 0:01:43.8]} 18... Qa5 {[%clk 0:01:00]} 19. Nf3 {[%clk 0:01:39.9]} 19...
dxe5 {[%clk 0:00:56.4]} 20. Nxe5 {[%clk 0:01:39.8]} 20... Nxe5 {[%clk
0:00:48.1]} 21. fxe5 {[%clk 0:01:39.9]} 21... d4 {[%clk 0:00:49]} 22. Qf5+
{[%clk 0:01:25.3]} 22... Kb8 {[%clk 0:00:48.6]} 23. b4 {[%clk 0:01:21.4]} 23...
Qd5 {[%clk 0:00:46.9]} 24. Rg1 {[%clk 0:01:08.6]} 24... Rge8 {[%clk 0:00:44]}
25. Bd3 {[%clk 0:01:04.7]} 25... Rxe5 {[%clk 0:00:41.1]} 26. Qxh7 {[%clk
0:01:04.4]} 26... Qc6 {[%clk 0:00:39.6]} 27. Qxf7 {[%clk 0:01:00.4]} 27... Qc3+
{[%clk 0:00:39.7]} 28. Ka2 {[%clk 0:00:56.6]} 28... Bd5+ {[%clk 0:00:39.5]} 0-1

[Event "Late-Titled-Tuesday-Blitz-January-23-2024"]
[Site "Chess.com"]
[Date "2024.01.23"]
[Round "1"]
[White "AntonSmirnov"]
[Black "username0932589"]
[Result "1-0"]
[WhiteElo "2982"]
[BlackElo "2508"]
[TimeControl "180+1"]
[EndTime "14:05:48 PST"]
[Termination "AntonSmirnov won by resignation"]

1. e4 {[%clk 0:03:00.9]} 1... e5 {[%clk 0:02:53.3]} 2. Nf3 {[%clk 0:03:01]} 2...
Nc6 {[%clk 0:02:53.8]} 3. Bb5 {[%clk 0:03:01.7]} 3... Nf6 {[%clk 0:02:51.8]} 4.
O-O {[%clk 0:03:01.5]} 4... Nxe4 {[%clk 0:02:51.6]} 5. d4 {[%clk 0:03:02.2]}
5... Nd6 {[%clk 0:02:52.2]} 6. Bxc6 {[%clk 0:03:03]} 6... dxc6 {[%clk
0:02:53.1]} 7. dxe5 {[%clk 0:03:03.9]} 7... Nf5 {[%clk 0:02:52.9]} 8. Qxd8+
{[%clk 0:03:04.8]} 8... Kxd8 {[%clk 0:02:53.4]} 9. Rd1+ {[%clk 0:03:05.7]} 9...
Ke8 {[%clk 0:02:52.7]} 10. Nc3 {[%clk 0:03:06.2]} 10... Be7 {[%clk 0:02:50.4]}
11. Ne2 {[%clk 0:03:06.3]} 11... h5 {[%clk 0:02:46.7]} 12. h3 {[%clk 0:03:05.4]}
12... h4 {[%clk 0:02:46.5]} 13. Bg5 {[%clk 0:03:00.6]} 13... Be6 {[%clk
0:02:43.7]} 14. Nf4 {[%clk 0:02:59.9]} 14... Rd8 {[%clk 0:02:26.6]} 15. Rxd8+
{[%clk 0:02:44.6]} 15... Kxd8 {[%clk 0:02:16.5]} 16. Rd1+ {[%clk 0:02:44.3]}
16... Ke8 {[%clk 0:02:15.9]} 17. b3 {[%clk 0:02:38.6]} 17... Bc8 {[%clk
0:02:07.2]} 18. Bxe7 {[%clk 0:02:31]} 18... Kxe7 {[%clk 0:02:04.9]} 19. Ng5
{[%clk 0:02:30.7]} 19... Rh6 {[%clk 0:01:45.7]} 20. Kh2 {[%clk 0:02:22.4]} 20...
a5 {[%clk 0:01:32.9]} 21. a3 {[%clk 0:02:16.2]} 21... b6 {[%clk 0:01:32.4]} 22.
Rd2 {[%clk 0:02:14.7]} 22... Rh8 {[%clk 0:01:04.8]} 23. e6 {[%clk 0:02:13.3]}
23... f6 {[%clk 0:00:28.9]} 24. Ng6+ {[%clk 0:02:11.4]} 24... Ke8 {[%clk
0:00:28.8]} 25. Nxh8 {[%clk 0:02:04.1]} 25... fxg5 {[%clk 0:00:29.1]} 26. Nf7
{[%clk 0:02:03.9]} 26... Bxe6 {[%clk 0:00:27.7]} 27. Nxg5 {[%clk 0:02:04.2]}
27... Bd5 {[%clk 0:00:27.5]} 28. Re2+ {[%clk 0:02:00]} 28... Kd7 {[%clk
0:00:26.7]} 29. Nf3 {[%clk 0:01:55.3]} 29... Bxf3 {[%clk 0:00:26.1]} 30. gxf3
{[%clk 0:01:55.6]} 30... Kd6 {[%clk 0:00:15]} 31. Re4 {[%clk 0:01:53.1]} 31...
g5 {[%clk 0:00:15]} 32. Rg4 {[%clk 0:01:50]} 32... c5 {[%clk 0:00:11.2]} 33. c3
{[%clk 0:01:49.7]} 33... b5 {[%clk 0:00:09.7]} 34. Rxg5 {[%clk 0:01:49.7]} 34...
Ke5 {[%clk 0:00:10.3]} 35. Kg2 {[%clk 0:01:48.1]} 35... a4 {[%clk 0:00:10]} 36.
bxa4 {[%clk 0:01:48]} 36... bxa4 {[%clk 0:00:10.9]} 37. Kf1 {[%clk 0:01:48.2]}
37... Kf4 {[%clk 0:00:10.6]} 38. Rg4+ {[%clk 0:01:48.7]} 38... Kxf3 {[%clk
0:00:11.2]} 39. Rxa4 {[%clk 0:01:48.3]} 39... Nd6 {[%clk 0:00:11.9]} 40. Rxh4
{[%clk 0:01:48.1]} 40... Ne4 {[%clk 0:00:12.5]} 41. Rxe4 {[%clk 0:01:48.3]}
41... Kxe4 {[%clk 0:00:13.3]} 42. Ke2 {[%clk 0:01:48.9]} 1-0

[Event "Late-Titled-Tuesday-Blitz-January-23-2024"]
[Site "Chess.com"]
[Date "2024.01.23"]
[Round "1"]
[White "ChessFighter1975"]
[Black "NovakCabarkapa"]
[Result "0-1"]
[WhiteElo "2450"]
[BlackElo "2818"]
[TimeControl "180+1"]
[EndTime "14:05:48 PST"]
[Termination "NovakCabarkapa won on time"]

1. d4 {[%clk 0:03:00.9]} 1... Nc6 {[%clk 0:02:55.7]} 2. d5 {[%clk 0:03:00.4]}
2... Ne5 {[%clk 0:02:54.6]} 3. f4 {[%clk 0:03:01]} 3... Ng6 {[%clk 0:02:54.9]}
4. e4 {[%clk 0:03:01.7]} 4... e5 {[%clk 0:02:55.2]} 5. dxe6 {[%clk 0:03:02.1]}
5... fxe6 {[%clk 0:02:55.1]} 6. Nf3 {[%clk 0:03:00.7]} 6... Bc5 {[%clk
0:02:54.6]} 7. Bd3 {[%clk 0:02:57.2]} 7... Nf6 {[%clk 0:02:47.7]} 8. Qe2 {[%clk
0:02:53.5]} 8... O-O {[%clk 0:02:45.1]} 9. e5 {[%clk 0:02:49.2]} 9... Nd5 {[%clk
0:02:38.4]} 10. g3 {[%clk 0:02:49.4]} 10... d6 {[%clk 0:02:37.1]} 11. Ng5 {[%clk
0:02:27.9]} 11... dxe5 {[%clk 0:02:18.2]} 12. Qh5 {[%clk 0:02:26]} 12... Nf6
{[%clk 0:02:18.3]} 13. Qe2 {[%clk 0:02:10.4]} 13... exf4 {[%clk 0:02:14.2]} 14.
gxf4 {[%clk 0:02:10.4]} 14... e5 {[%clk 0:02:09]} 15. Nc3 {[%clk 0:01:48.2]}
15... Bg4 {[%clk 0:02:06.8]} 16. Qg2 {[%clk 0:01:24.2]} 16... exf4 {[%clk
0:01:53.3]} 17. Nce4 {[%clk 0:01:06.7]} 17... Re8 {[%clk 0:01:46.1]} 18. Bd2
{[%clk 0:00:53]} 18... Nh4 {[%clk 0:01:28]} 19. Bc4+ {[%clk 0:00:22.7]} 19...
Kf8 {[%clk 0:01:25]} 20. Nxh7+ {[%clk 0:00:16.1]} 20... Nxh7 {[%clk 0:01:25.9]}
21. Qxg4 {[%clk 0:00:16.4]} 21... Rxe4+ {[%clk 0:01:26.1]} 22. Kd1 {[%clk
0:00:14.3]} 22... Rxc4 {[%clk 0:01:18.7]} 23. Rf1 {[%clk 0:00:06.5]} 23... Be3
{[%clk 0:01:14.9]} 0-1